[Event "November 21 Early 2023"]
[Site "https://www.chess.com"]
[Date "2023.11.21"]
[Round "3"]
[White "Tarasova, Viktoriya"]
[Black "JuniorJumper"]
[Result "1-0"]
[Board "146"]
[TimeControl "180+1"]
[WhiteFideId "4175840"]
[WhiteElo "2182"]
[BlackElo "2570"]
[WhiteTeam "RUS"]
[WhiteClock "0:01:00"]
[BlackClock "0:00:02"]

1. d4 {[%clk 0:02:59]}  Nf6 {[%clk 0:02:59]} 2. c4 {[%clk 0:02:59]}  e6 {[%clk 0:02:56]} 3. Nc3 {[%clk 0:02:59]}  b6 {[%clk 0:02:56]} 4. e4 {[%clk 0:02:54]}  Bb7 {[%clk 0:02:53]} 5. f3 {[%clk 0:02:39]}  d5 {[%clk 0:02:48]} 6. cxd5 {[%clk 0:02:38]}  exd5 {[%clk 0:02:48]} 7. e5 {[%clk 0:02:39]}  Nfd7 {[%clk 0:02:48]} 8. f4 {[%clk 0:02:36]}  c5 {[%clk 0:02:46]} 9. Nf3 {[%clk 0:02:37]}  Nc6 {[%clk 0:02:45]} 10. Be3 {[%clk 0:02:35]}  Rc8 {[%clk 0:02:25]} 11. Be2 {[%clk 0:02:35]}  cxd4 {[%clk 0:02:18]} 12. Nxd4 {[%clk 0:02:34]}  Nxd4 {[%clk 0:02:19]} 13. Bxd4 {[%clk 0:02:35]}  Bc5 {[%clk 0:02:20]} 14. O-O {[%clk 0:02:33]}  O-O {[%clk 0:02:20]} 15. Nb5 {[%clk 0:02:26]}  Ba6 {[%clk 0:01:36]} 16. Bxc5 {[%clk 0:02:09]}  Rxc5 {[%clk 0:01:36]} 17. Nd6 {[%clk 0:02:02]}  Bxe2 {[%clk 0:01:34]} 18. Qxe2 {[%clk 0:02:03]}  Qc7 {[%clk 0:01:33]} 19. Rad1 {[%clk 0:01:55]}  Rc2 {[%clk 0:01:03]} 20. Rd2 {[%clk 0:01:50]}  Rxd2 {[%clk 0:00:37]} 21. Qxd2 {[%clk 0:01:49]}  Qc5+ {[%clk 0:00:38]} 22. Kh1 {[%clk 0:01:47]}  f6 {[%clk 0:00:35]} 23. b4 {[%clk 0:01:24]}  Qc6 {[%clk 0:00:26]} 24. Rc1 {[%clk 0:01:19]}  Qa4 {[%clk 0:00:07]} 25. Qxd5+ {[%clk 0:01:14]}  Kh8 {[%clk 0:00:07]} 26. e6 {[%clk 0:01:09]}  Qa3 {[%clk 0:00:06]} 27. Rd1 {[%clk 0:01:01]}  Nb8 {[%clk 0:00:04]} 28. e7 {[%clk 0:01:01]}  Rg8 {[%clk 0:00:02]} 29. Nf7# {[%clk 0:01:00]} 1-0

[Event "November 21 Early 2023"]
[Site "https://www.chess.com"]
[Date "2023.11.21"]
[Round "3"]
[White "Nasir, Zehn"]
[Black "AC_20"]
[Result "0-1"]
[Board "148"]
[TimeControl "180+1"]
[WhiteFideId "2613239"]
[WhiteElo "2004"]
[BlackElo "2352"]
[WhiteTeam "CAN"]
[WhiteClock "0:00:46"]
[BlackClock "0:01:21"]

1. d4 {[%clk 0:02:51]}  d5 {[%clk 0:02:53]} 2. Bf4 {[%clk 0:02:51]}  Nf6 {[%clk 0:02:47]} 3. e3 {[%clk 0:02:51]}  e6 {[%clk 0:02:48]} 4. Nf3 {[%clk 0:02:52]}  Be7 {[%clk 0:02:48]} 5. Bd3 {[%clk 0:02:50]}  O-O {[%clk 0:02:49]} 6. Nbd2 {[%clk 0:02:51]}  b6 {[%clk 0:02:49]} 7. Qe2 {[%clk 0:02:48]}  Bb7 {[%clk 0:02:39]} 8. Ne5 {[%clk 0:02:48]}  Nbd7 {[%clk 0:02:38]} 9. c3 {[%clk 0:02:48]}  c5 {[%clk 0:02:37]} 10. g4 {[%clk 0:02:47]}  Ne4 {[%clk 0:02:37]} 11. f3 {[%clk 0:02:36]}  Bh4+ {[%clk 0:02:34]} 12. Kf1 {[%clk 0:02:27]}  Nxd2+ {[%clk 0:02:34]} 13. Qxd2 {[%clk 0:02:28]}  f6 {[%clk 0:02:35]} 14. Nxd7 {[%clk 0:02:25]}  Qxd7 {[%clk 0:02:35]} 15. Bg3 {[%clk 0:02:25]}  Bg5 {[%clk 0:02:33]} 16. h4 {[%clk 0:02:19]}  Bh6 {[%clk 0:02:33]} 17. g5 {[%clk 0:02:14]}  fxg5 {[%clk 0:02:32]} 18. hxg5 {[%clk 0:02:15]}  Bxg5 {[%clk 0:02:20]} 19. Bxh7+ {[%clk 0:02:14]}  Kf7 {[%clk 0:02:21]} 20. Qg2 {[%clk 0:01:32]}  Ke7 {[%clk 0:02:10]} 21. Be5 {[%clk 0:01:24]}  Bxe3 {[%clk 0:01:34]} 22. Qxg7+ {[%clk 0:01:15]}  Rf7 {[%clk 0:01:34]} 23. Qg4 {[%clk 0:00:59]}  Qb5+ {[%clk 0:01:22]} 24. Kg2 {[%clk 0:00:52]}  Qxb2+ {[%clk 0:01:21]} 25. Kh3 {[%clk 0:00:46]}  Rxh7+ {[%clk 0:01:21]} 0-1

[Event "November 21 Early 2023"]
[Site "https://www.chess.com"]
[Date "2023.11.21"]
[Round "3"]
[White "Derjabin, Ilja"]
[Black "Mikhailova, Irina"]
[Result "1-0"]
[Board "150"]
[TimeControl "180+1"]
[WhiteFideId "14104768"]
[BlackFideId "4109040"]
[WhiteElo "2309"]
[BlackElo "2009"]
[WhiteTeam "UKR"]
[BlackTeam "RUS"]
[WhiteClock "0:00:07"]
[BlackClock "0:00:00"]

1. d4 {[%clk 0:03:00]}  Nf6 {[%clk 0:02:59]} 2. c4 {[%clk 0:02:55]}  g6 {[%clk 0:02:59]} 3. Nc3 {[%clk 0:02:55]}  d5 {[%clk 0:02:59]} 4. Bg5 {[%clk 0:02:55]}  Bg7 {[%clk 0:02:59]} 5. Nf3 {[%clk 0:02:54]}  dxc4 {[%clk 0:02:53]} 6. e4 {[%clk 0:02:53]}  c5 {[%clk 0:02:53]} 7. d5 {[%clk 0:02:52]}  b5 {[%clk 0:02:52]} 8. e5 {[%clk 0:02:43]}  b4 {[%clk 0:02:52]} 9. exf6 {[%clk 0:02:37]}  exf6 {[%clk 0:02:52]} 10. Qe2+ {[%clk 0:02:16]}  Kf8 {[%clk 0:02:52]} 11. Be3 {[%clk 0:02:16]}  bxc3 {[%clk 0:02:51]} 12. Bxc5+ {[%clk 0:02:08]}  Kg8 {[%clk 0:02:51]} 13. bxc3 {[%clk 0:02:09]}  Bb7 {[%clk 0:02:41]} 14. Rd1 {[%clk 0:02:03]}  Nd7 {[%clk 0:02:41]} 15. Bd4 {[%clk 0:02:03]}  Bxd5 {[%clk 0:02:32]} 16. g3 {[%clk 0:02:03]}  Qe8 {[%clk 0:02:14]} 17. Be3 {[%clk 0:02:00]}  Nb6 {[%clk 0:01:41]} 18. Bg2 {[%clk 0:01:58]}  Rd8 {[%clk 0:01:40]} 19. O-O {[%clk 0:01:55]}  f5 {[%clk 0:01:25]} 20. Qd2 {[%clk 0:01:38]}  Bf6 {[%clk 0:01:21]} 21. Bd4 {[%clk 0:01:34]}  Bg7 {[%clk 0:00:57]} 22. Rfe1 {[%clk 0:01:30]}  Qc6 {[%clk 0:00:56]} 23. Bxg7 {[%clk 0:01:27]}  Kxg7 {[%clk 0:00:56]} 24. Ne5 {[%clk 0:00:54]}  Bxg2 {[%clk 0:00:46]} 25. Qxd8 {[%clk 0:00:52]}  Rxd8 {[%clk 0:00:45]} 26. Nxc6 {[%clk 0:00:51]}  Rxd1 {[%clk 0:00:44]} 27. Rxd1 {[%clk 0:00:52]}  Bxc6 {[%clk 0:00:44]} 28. Rd6 {[%clk 0:00:52]}  Be4 {[%clk 0:00:40]} 29. Kf1 {[%clk 0:00:48]}  Na4 {[%clk 0:00:36]} 30. Ra6 {[%clk 0:00:48]}  Nxc3 {[%clk 0:00:36]} 31. Rxa7 {[%clk 0:00:48]}  Nb5 {[%clk 0:00:35]} 32. Ra5 {[%clk 0:00:46]}  c3 {[%clk 0:00:34]} 33. Ke2 {[%clk 0:00:44]}  c2 {[%clk 0:00:29]} 34. Kd2 {[%clk 0:00:39]}  Nd4 {[%clk 0:00:29]} 35. Rc5 {[%clk 0:00:35]}  Nf3+ {[%clk 0:00:26]} 36. Ke3 {[%clk 0:00:27]}  Nxh2 {[%clk 0:00:22]} 37. a4 {[%clk 0:00:22]}  Ng4+ {[%clk 0:00:21]} 38. Ke2 {[%clk 0:00:21]}  Ne5 {[%clk 0:00:19]} 39. Kd2 {[%clk 0:00:14]}  Nf3+ {[%clk 0:00:16]} 40. Ke3 {[%clk 0:00:12]}  Ne5 {[%clk 0:00:15]} 41. a5 {[%clk 0:00:10]}  Nc6 {[%clk 0:00:12]} 42. a6 {[%clk 0:00:09]}  Na7 {[%clk 0:00:12]} 43. Kd2 {[%clk 0:00:09]}  h5 {[%clk 0:00:09]} 44. Rc7 {[%clk 0:00:08]}  Nb5 {[%clk 0:00:09]} 45. Rc5 {[%clk 0:00:05]}  Na7 {[%clk 0:00:08]} 46. Rc7 {[%clk 0:00:06]}  Nb5 {[%clk 0:00:07]} 47. Rb7 {[%clk 0:00:06]}  Nd4 {[%clk 0:00:05]} 48. Rb4 {[%clk 0:00:04]}  Nf3+ {[%clk 0:00:04]} 49. Kc1 {[%clk 0:00:04]}  Ne1 {[%clk 0:00:04]} 50. Rxe4 {[%clk 0:00:04]}  fxe4 {[%clk 0:00:04]} 51. a7 {[%clk 0:00:05]}  e3 {[%clk 0:00:03]} 52. fxe3 {[%clk 0:00:05]}  Nd3+ {[%clk 0:00:02]} 53. Kxc2 {[%clk 0:00:05]}  Ne5 {[%clk 0:00:02]} 54. a8=Q {[%clk 0:00:05]}  Kf6 {[%clk 0:00:03]} 55. Qa1 {[%clk 0:00:05]}  Kf5 {[%clk 0:00:03]} 56. Kd2 {[%clk 0:00:06]}  Ng4 {[%clk 0:00:03]} 57. Ke2 {[%clk 0:00:06]}  Kg5 {[%clk 0:00:02]} 58. Qa5+ {[%clk 0:00:06]}  f5 {[%clk 0:00:02]} 59. Kf3 {[%clk 0:00:07]}  Nh2+ {[%clk 0:00:03]} 60. Kg2 {[%clk 0:00:07]}  Ng4 {[%clk 0:00:02]} 61. Qa7 {[%clk 0:00:07]}  Nf6 {[%clk 0:00:01]} 62. Qe7 {[%clk 0:00:07]}  f4 {[%clk 0:00:00]} 63. gxf4+ {[%clk 0:00:07]} 1-0

[Event "November 21 Early 2023"]
[Site "https://www.chess.com"]
[Date "2023.11.21"]
[Round "3"]
[White "Grunberg, Mihai-Lucian"]
[Black "Lesbekova, Assel"]
[Result "1-0"]
[Board "151"]
[TimeControl "180+1"]
[WhiteFideId "1204149"]
[BlackFideId "13713248"]
[WhiteElo "2363"]
[BlackElo "1861"]
[WhiteTeam "ROU"]
[BlackTeam "KGZ"]
[WhiteClock "0:01:21"]
[BlackClock "0:01:14"]

1. e4 {[%clk 0:03:00]}  e5 {[%clk 0:02:59]} 2. Nf3 {[%clk 0:02:59]}  Nf6 {[%clk 0:03:00]} 3. Nc3 {[%clk 0:02:58]}  Nc6 {[%clk 0:03:00]} 4. Be2 {[%clk 0:02:58]}  d5 {[%clk 0:02:59]} 5. exd5 {[%clk 0:02:58]}  Nxd5 {[%clk 0:03:00]} 6. d4 {[%clk 0:02:56]}  exd4 {[%clk 0:02:49]} 7. Nxd4 {[%clk 0:02:56]}  Nxc3 {[%clk 0:02:49]} 8. bxc3 {[%clk 0:02:56]}  Ne5 {[%clk 0:02:48]} 9. O-O {[%clk 0:02:54]}  Be7 {[%clk 0:02:46]} 10. Bf4 {[%clk 0:02:51]}  Ng6 {[%clk 0:02:45]} 11. Bg3 {[%clk 0:02:50]}  O-O {[%clk 0:02:39]} 12. Nb5 {[%clk 0:02:49]}  c6 {[%clk 0:02:35]} 13. Nc7 {[%clk 0:02:48]}  Rb8 {[%clk 0:02:34]} 14. Rb1 {[%clk 0:02:13]}  Bh4 {[%clk 0:02:22]} 15. Qxd8 {[%clk 0:02:11]}  Rxd8 {[%clk 0:02:18]} 16. Na6 {[%clk 0:01:56]}  Bxg3 {[%clk 0:02:08]} 17. fxg3 {[%clk 0:01:49]}  Ra8 {[%clk 0:02:07]} 18. Nc7 {[%clk 0:01:47]}  Rb8 {[%clk 0:02:07]} 19. Bc4 {[%clk 0:01:47]}  Ne5 {[%clk 0:02:05]} 20. Bb3 {[%clk 0:01:42]}  Bg4 {[%clk 0:01:55]} 21. Rbe1 {[%clk 0:01:41]}  Rbc8 {[%clk 0:01:44]} 22. Na6 {[%clk 0:01:30]}  Re8 {[%clk 0:01:27]} 23. Nc5 {[%clk 0:01:30]}  b6 {[%clk 0:01:24]} 24. Nd3 {[%clk 0:01:30]}  Nxd3 {[%clk 0:01:16]} 25. Bxf7+ {[%clk 0:01:29]}  Kh8 {[%clk 0:01:15]} 26. Bxe8 {[%clk 0:01:22]}  Nxe1 {[%clk 0:01:14]} 27. Rf8# {[%clk 0:01:21]} 1-0

[Event "November 21 Early 2023"]
[Site "https://www.chess.com"]
[Date "2023.11.21"]
[Round "3"]
[White "Kornyukov, Alexey"]
[Black "Jovic, Stanoje"]
[Result "1/2-1/2"]
[Board "152"]
[TimeControl "180+1"]
[WhiteFideId "4150457"]
[BlackFideId "905020"]
[WhiteElo "2352"]
[BlackElo "2249"]
[WhiteTeam "RUS"]
[BlackTeam "SRB"]
[WhiteClock "0:00:04"]
[BlackClock "0:00:04"]

1. d4 {[%clk 0:03:00]}  Nf6 {[%clk 0:01:31]} 2. Nc3 {[%clk 0:02:59]}  d5 {[%clk 0:01:30]} 3. Bg5 {[%clk 0:02:58]}  e6 {[%clk 0:01:29]} 4. e4 {[%clk 0:02:58]}  Bb4 {[%clk 0:01:28]} 5. e5 {[%clk 0:02:57]}  h6 {[%clk 0:01:27]} 6. Bc1 {[%clk 0:02:57]}  Ne4 {[%clk 0:01:23]} 7. Qg4 {[%clk 0:02:53]}  Nxc3 {[%clk 0:01:19]} 8. Qxg7 {[%clk 0:02:51]}  Rf8 {[%clk 0:01:16]} 9. a3 {[%clk 0:02:39]}  Ba5 {[%clk 0:01:16]} 10. Bd2 {[%clk 0:02:37]}  c5 {[%clk 0:01:03]} 11. dxc5 {[%clk 0:02:22]}  Ne4 {[%clk 0:00:57]} 12. Bxa5 {[%clk 0:02:09]}  Qxa5+ {[%clk 0:00:56]} 13. b4 {[%clk 0:02:09]}  Qd8 {[%clk 0:00:53]} 14. Qxh6 {[%clk 0:01:51]}  f6 {[%clk 0:00:48]} 15. Bb5+ {[%clk 0:01:48]}  Nc6 {[%clk 0:00:46]} 16. Qg6+ {[%clk 0:01:47]}  Kd7 {[%clk 0:00:41]} 17. f3 {[%clk 0:01:39]}  Nc3 {[%clk 0:00:38]} 18. Bxc6+ {[%clk 0:01:31]}  bxc6 {[%clk 0:00:37]} 19. Qd3 {[%clk 0:01:25]}  Nb5 {[%clk 0:00:36]} 20. c4 {[%clk 0:01:19]}  Nc7 {[%clk 0:00:34]} 21. cxd5 {[%clk 0:01:15]}  cxd5 {[%clk 0:00:32]} 22. b5 {[%clk 0:00:53]}  fxe5 {[%clk 0:00:29]} 23. c6+ {[%clk 0:00:51]}  Ke8 {[%clk 0:00:27]} 24. Qg6+ {[%clk 0:00:49]}  Rf7 {[%clk 0:00:27]} 25. Qg8+ {[%clk 0:00:48]}  Ke7 {[%clk 0:00:27]} 26. Qg5+ {[%clk 0:00:47]}  Rf6 {[%clk 0:00:26]} 27. Qg7+ {[%clk 0:00:46]}  Kd6 {[%clk 0:00:26]} 28. Ne2 {[%clk 0:00:31]}  Qf8 {[%clk 0:00:24]} 29. Qg3 {[%clk 0:00:25]}  Qh6 {[%clk 0:00:22]} 30. O-O {[%clk 0:00:22]}  Rg6 {[%clk 0:00:16]} 31. Qf2 {[%clk 0:00:20]}  Ke7 {[%clk 0:00:15]} 32. Qc5+ {[%clk 0:00:20]}  Kf7 {[%clk 0:00:14]} 33. Qd6 {[%clk 0:00:16]}  Qe3+ {[%clk 0:00:13]} 34. Rf2 {[%clk 0:00:16]}  Ne8 {[%clk 0:00:13]} 35. Qb4 {[%clk 0:00:16]}  a6 {[%clk 0:00:13]} 36. b6 {[%clk 0:00:14]}  a5 {[%clk 0:00:13]} 37. Qb2 {[%clk 0:00:12]}  Ba6 {[%clk 0:00:12]} 38. b7 {[%clk 0:00:11]}  Rb8 {[%clk 0:00:12]} 39. Re1 {[%clk 0:00:07]}  Nc7 {[%clk 0:00:11]} 40. Qb1 {[%clk 0:00:06]}  Bd3 {[%clk 0:00:10]} 41. Qb2 {[%clk 0:00:06]}  Qc5 {[%clk 0:00:08]} 42. Qd2 {[%clk 0:00:05]}  Bxe2 {[%clk 0:00:08]} 43. Qxe2 {[%clk 0:00:05]}  Qxc6 {[%clk 0:00:08]} 44. Qxe5 {[%clk 0:00:05]}  Rxb7 {[%clk 0:00:08]} 45. Qh5 {[%clk 0:00:06]}  Kg7 {[%clk 0:00:08]} 46. Qe5+ {[%clk 0:00:06]}  Rf6 {[%clk 0:00:08]} 47. Qg5+ {[%clk 0:00:06]}  Kf7 {[%clk 0:00:08]} 48. Qh5+ {[%clk 0:00:06]}  Ke7 {[%clk 0:00:09]} 49. Qh7+ {[%clk 0:00:06]}  Rf7 {[%clk 0:00:09]} 50. Qh4+ {[%clk 0:00:07]}  Kd7 {[%clk 0:00:09]} 51. Qh8 {[%clk 0:00:07]}  Rb3 {[%clk 0:00:08]} 52. Qe5 {[%clk 0:00:07]}  Qc5 {[%clk 0:00:07]} 53. Qh5 {[%clk 0:00:06]}  Qc3 {[%clk 0:00:06]} 54. Qxf7+ {[%clk 0:00:06]}  Kd6 {[%clk 0:00:05]} 55. Qf8+ {[%clk 0:00:06]}  Kc6 {[%clk 0:00:05]} 56. Ref1 {[%clk 0:00:04]}  Rxa3 {[%clk 0:00:05]} 57. Qf7 {[%clk 0:00:04]}  Rb3 {[%clk 0:00:05]} 58. h4 {[%clk 0:00:04]}  a4 {[%clk 0:00:05]} 59. h5 {[%clk 0:00:04]}  a3 {[%clk 0:00:06]} 60. h6 {[%clk 0:00:05]}  Rb2 {[%clk 0:00:06]} 61. Rxb2 {[%clk 0:00:04]}  axb2 {[%clk 0:00:06]} 62. h7 {[%clk 0:00:04]}  Qd4+ {[%clk 0:00:05]} 63. Kh1 {[%clk 0:00:03]}  Qh4+ {[%clk 0:00:05]} 64. Kg1 {[%clk 0:00:03]}  Qh6 {[%clk 0:00:05]} 65. Rb1 {[%clk 0:00:03]}  Qc1+ {[%clk 0:00:05]} 66. Rxc1+ {[%clk 0:00:03]}  bxc1=Q+ {[%clk 0:00:05]} 67. Kh2 {[%clk 0:00:04]}  Qh6+ {[%clk 0:00:05]} 68. Kg1 {[%clk 0:00:04]}  d4 {[%clk 0:00:06]} 69. Qg8 {[%clk 0:00:04]}  Qe3+ {[%clk 0:00:05]} 70. Kh2 {[%clk 0:00:04]}  Qe5+ {[%clk 0:00:05]} 71. Kg1 {[%clk 0:00:03]}  Qe3+ {[%clk 0:00:04]} 72. Kh2 {[%clk 0:00:04]}  Qh6+ {[%clk 0:00:04]} 73. Kg1 {[%clk 0:00:04]}  Qe3+ {[%clk 0:00:04]} 1/2-1/2

[Event "November 21 Early 2023"]
[Site "https://www.chess.com"]
[Date "2023.11.21"]
[Round "3"]
[White "AndresDelgado77"]
[Black "Badelka, Olga"]
[Result "0-1"]
[Board "154"]
[TimeControl "180+1"]
[BlackFideId "13509926"]
[WhiteElo "2304"]
[BlackElo "2262"]
[BlackTeam "FID"]
[WhiteClock "0:00:19"]
[BlackClock "0:01:44"]

1. e4 {[%clk 0:03:00]}  e5 {[%clk 0:02:59]} 2. Nc3 {[%clk 0:03:00]}  Nf6 {[%clk 0:02:56]} 3. d4 {[%clk 0:02:58]}  exd4 {[%clk 0:02:54]} 4. Qxd4 {[%clk 0:02:58]}  Nc6 {[%clk 0:02:54]} 5. Qc4 {[%clk 0:02:58]}  Bb4 {[%clk 0:02:49]} 6. Bd2 {[%clk 0:02:57]}  O-O {[%clk 0:02:42]} 7. O-O-O {[%clk 0:02:55]}  d6 {[%clk 0:02:28]} 8. f3 {[%clk 0:02:41]}  Be6 {[%clk 0:02:27]} 9. Qe2 {[%clk 0:02:42]}  a5 {[%clk 0:02:09]} 10. g4 {[%clk 0:02:37]}  Bxc3 {[%clk 0:02:06]} 11. Bxc3 {[%clk 0:02:36]}  Bxa2 {[%clk 0:02:07]} 12. e5 {[%clk 0:02:06]}  Nd5 {[%clk 0:02:00]} 13. exd6 {[%clk 0:00:56]}  Nxc3 {[%clk 0:01:58]} 14. bxc3 {[%clk 0:00:56]}  cxd6 {[%clk 0:01:58]} 15. Qd3 {[%clk 0:00:38]}  Qb6 {[%clk 0:01:55]} 16. Ne2 {[%clk 0:00:31]}  Ne5 {[%clk 0:01:46]} 17. Qxd6 {[%clk 0:00:24]}  Qb1+ {[%clk 0:01:43]} 18. Kd2 {[%clk 0:00:24]}  Nc4+ {[%clk 0:01:43]} 19. Ke1 {[%clk 0:00:24]}  Nxd6 {[%clk 0:01:43]} 20. Rxb1 {[%clk 0:00:19]}  Bxb1 {[%clk 0:01:44]} 0-1

[Event "November 21 Early 2023"]
[Site "https://www.chess.com"]
[Date "2023.11.21"]
[Round "3"]
[White "Nekoo04"]
[Black "Ozates, Tuna"]
[Result "0-1"]
[Board "156"]
[TimeControl "180+1"]
[BlackFideId "6354521"]
[WhiteElo "2290"]
[BlackElo "2151"]
[BlackTeam "TUR"]
[WhiteClock "0:00:00"]
[BlackClock "0:00:23"]

1. d4 {[%clk 0:02:50]}  Nf6 {[%clk 0:02:58]} 2. c4 {[%clk 0:02:50]}  e6 {[%clk 0:02:53]} 3. g3 {[%clk 0:02:50]}  Bb4+ {[%clk 0:02:48]} 4. Bd2 {[%clk 0:02:49]}  Be7 {[%clk 0:02:48]} 5. Bg2 {[%clk 0:02:48]}  d5 {[%clk 0:02:49]} 6. Nf3 {[%clk 0:02:49]}  c6 {[%clk 0:02:47]} 7. O-O {[%clk 0:02:47]}  a5 {[%clk 0:02:48]} 8. Qc2 {[%clk 0:02:47]}  O-O {[%clk 0:02:47]} 9. Bf4 {[%clk 0:02:47]}  Nbd7 {[%clk 0:02:40]} 10. Nbd2 {[%clk 0:02:35]}  h6 {[%clk 0:02:32]} 11. e4 {[%clk 0:02:30]}  dxe4 {[%clk 0:02:32]} 12. Nxe4 {[%clk 0:02:31]}  Nxe4 {[%clk 0:02:32]} 13. Qxe4 {[%clk 0:02:31]}  Nf6 {[%clk 0:02:29]} 14. Qe2 {[%clk 0:02:31]}  a4 {[%clk 0:02:23]} 15. Rfd1 {[%clk 0:02:21]}  Qb6 {[%clk 0:02:20]} 16. Rac1 {[%clk 0:02:18]}  Rd8 {[%clk 0:02:00]} 17. h3 {[%clk 0:01:43]}  Bd7 {[%clk 0:01:57]} 18. Ne5 {[%clk 0:01:40]}  Be8 {[%clk 0:01:57]} 19. c5 {[%clk 0:01:26]}  Qa6 {[%clk 0:01:50]} 20. Qxa6 {[%clk 0:01:08]}  Rxa6 {[%clk 0:01:51]} 21. Nc4 {[%clk 0:01:09]}  Nd5 {[%clk 0:01:51]} 22. Bd6 {[%clk 0:01:08]}  Bg5 {[%clk 0:01:21]} 23. f4 {[%clk 0:01:07]}  Bf6 {[%clk 0:01:19]} 24. a3 {[%clk 0:00:47]}  Rd7 {[%clk 0:00:48]} 25. f5 {[%clk 0:00:42]}  b5 {[%clk 0:00:45]} 26. cxb6 {[%clk 0:00:19]}  Nxb6 {[%clk 0:00:44]} 27. fxe6 {[%clk 0:00:19]}  fxe6 {[%clk 0:00:42]} 28. Bxc6 {[%clk 0:00:06]}  Nxc4 {[%clk 0:00:41]} 29. Rxc4 {[%clk 0:00:05]}  Rxd6 {[%clk 0:00:23]} 30. Bxe8 {[%clk 0:00:05]}  Rab6 {[%clk 0:00:23]} 31. Bxa4 {[%clk 0:00:00]}  Rxb2 {[%clk 0:00:23]} 0-1

[Event "November 21 Early 2023"]
[Site "https://www.chess.com"]
[Date "2023.11.21"]
[Round "3"]
[White "Minina, Veronika"]
[Black "Tologon tegin, Semetei"]
[Result "1-0"]
[Board "157"]
[TimeControl "180+1"]
[WhiteFideId "4174780"]
[BlackFideId "13800574"]
[WhiteElo "1905"]
[BlackElo "2258"]
[WhiteTeam "RUS"]
[BlackTeam "KGZ"]
[WhiteClock "0:01:46"]
[BlackClock "0:00:42"]

1. Nf3 {[%clk 0:03:00]}  b6 {[%clk 0:02:57]} 2. g3 {[%clk 0:03:00]}  Bb7 {[%clk 0:02:57]} 3. Bg2 {[%clk 0:03:01]}  g6 {[%clk 0:02:55]} 4. O-O {[%clk 0:03:01]}  Bg7 {[%clk 0:02:56]} 5. c4 {[%clk 0:03:01]}  Nf6 {[%clk 0:02:56]} 6. Nc3 {[%clk 0:03:01]}  O-O {[%clk 0:02:54]} 7. d4 {[%clk 0:03:00]}  Ne4 {[%clk 0:02:53]} 8. Qc2 {[%clk 0:02:45]}  Nxc3 {[%clk 0:02:53]} 9. Qxc3 {[%clk 0:02:45]}  c5 {[%clk 0:02:53]} 10. Qd3 {[%clk 0:02:44]}  cxd4 {[%clk 0:02:50]} 11. Nxd4 {[%clk 0:02:45]}  Bxg2 {[%clk 0:02:49]} 12. Kxg2 {[%clk 0:02:46]}  Qc7 {[%clk 0:02:47]} 13. b3 {[%clk 0:02:40]}  Nc6 {[%clk 0:02:45]} 14. Bb2 {[%clk 0:02:38]}  Rfd8 {[%clk 0:02:43]} 15. Rad1 {[%clk 0:02:36]}  d5 {[%clk 0:02:15]} 16. Nxc6 {[%clk 0:02:26]}  Qxc6 {[%clk 0:02:07]} 17. cxd5 {[%clk 0:02:26]}  Qb7 {[%clk 0:02:01]} 18. Bxg7 {[%clk 0:02:25]}  Kxg7 {[%clk 0:02:01]} 19. Kg1 {[%clk 0:02:22]}  Kg8 {[%clk 0:01:59]} 20. e4 {[%clk 0:02:22]}  e6 {[%clk 0:01:53]} 21. d6 {[%clk 0:02:18]}  e5 {[%clk 0:01:53]} 22. Qb5 {[%clk 0:02:14]}  f6 {[%clk 0:01:49]} 23. d7 {[%clk 0:02:08]}  Kg7 {[%clk 0:01:45]} 24. Rd5 {[%clk 0:01:58]}  a6 {[%clk 0:01:44]} 25. Qd3 {[%clk 0:01:52]}  Ra7 {[%clk 0:01:42]} 26. Rd1 {[%clk 0:01:52]}  Qc6 {[%clk 0:01:41]} 27. Rd6 {[%clk 0:01:49]}  Qc5 {[%clk 0:00:42]} 28. Qf3 {[%clk 0:01:46]} 1-0

[Event "November 21 Early 2023"]
[Site "https://www.chess.com"]
[Date "2023.11.21"]
[Round "3"]
[White "Jimenez Fernandez, Rebeca"]
[Black "Guliev, Logman"]
[Result "0-1"]
[Board "163"]
[TimeControl "180+1"]
[WhiteFideId "32070934"]
[BlackFideId "13400061"]
[WhiteElo "2015"]
[BlackElo "2098"]
[WhiteTeam "ESP"]
[BlackTeam "AZE"]
[WhiteClock "0:00:06"]
[BlackClock "0:00:53"]

1. e4 {[%clk 0:03:00]}  c5 {[%clk 0:02:58]} 2. Nc3 {[%clk 0:03:00]}  Nc6 {[%clk 0:02:58]} 3. g3 {[%clk 0:03:01]}  g6 {[%clk 0:02:58]} 4. Bg2 {[%clk 0:03:01]}  Bg7 {[%clk 0:02:59]} 5. d3 {[%clk 0:03:02]}  d6 {[%clk 0:02:59]} 6. Be3 {[%clk 0:03:03]}  e6 {[%clk 0:02:59]} 7. Qd2 {[%clk 0:03:03]}  h5 {[%clk 0:02:59]} 8. h3 {[%clk 0:03:03]}  Nge7 {[%clk 0:02:59]} 9. f4 {[%clk 0:03:01]}  Qa5 {[%clk 0:02:59]} 10. Nf3 {[%clk 0:03:00]}  Nd4 {[%clk 0:02:58]} 11. O-O {[%clk 0:02:59]}  O-O {[%clk 0:02:51]} 12. e5 {[%clk 0:02:47]}  Nef5 {[%clk 0:02:46]} 13. Bf2 {[%clk 0:02:31]}  Nxf3+ {[%clk 0:02:37]} 14. Bxf3 {[%clk 0:02:31]}  dxe5 {[%clk 0:02:37]} 15. fxe5 {[%clk 0:02:25]}  Bxe5 {[%clk 0:02:36]} 16. g4 {[%clk 0:02:00]}  Nd4 {[%clk 0:02:31]} 17. Bg2 {[%clk 0:01:56]}  hxg4 {[%clk 0:02:30]} 18. hxg4 {[%clk 0:01:56]}  Bg7 {[%clk 0:02:30]} 19. Qg5 {[%clk 0:01:51]}  Qd8 {[%clk 0:02:08]} 20. Qxc5 {[%clk 0:01:48]}  Nxc2 {[%clk 0:02:07]} 21. Rad1 {[%clk 0:01:44]}  Bd4 {[%clk 0:02:02]} 22. Qc4 {[%clk 0:01:28]}  Ne3 {[%clk 0:02:01]} 23. Qa4 {[%clk 0:01:00]}  e5 {[%clk 0:01:59]} 24. Ne4 {[%clk 0:00:55]}  Nxd1 {[%clk 0:01:52]} 25. Qxd1 {[%clk 0:00:51]}  Kg7 {[%clk 0:01:47]} 26. Qf3 {[%clk 0:00:47]}  Be6 {[%clk 0:01:42]} 27. g5 {[%clk 0:00:42]}  Bf5 {[%clk 0:01:39]} 28. Bh3 {[%clk 0:00:16]}  Bxe4 {[%clk 0:01:18]} 29. dxe4 {[%clk 0:00:16]}  Qxg5+ {[%clk 0:01:17]} 30. Bg2 {[%clk 0:00:15]}  Rad8 {[%clk 0:01:09]} 31. Bxd4 {[%clk 0:00:11]}  Rxd4 {[%clk 0:01:06]} 32. Qf2 {[%clk 0:00:11]}  Rd2 {[%clk 0:01:05]} 33. Qf3 {[%clk 0:00:11]}  Rxg2+ {[%clk 0:01:00]} 34. Qxg2 {[%clk 0:00:12]}  Qxg2+ {[%clk 0:01:00]} 35. Kxg2 {[%clk 0:00:13]}  Rc8 {[%clk 0:01:00]} 36. Kf3 {[%clk 0:00:13]}  Rc2 {[%clk 0:01:00]} 37. Rb1 {[%clk 0:00:13]}  f5 {[%clk 0:00:59]} 38. exf5 {[%clk 0:00:11]}  gxf5 {[%clk 0:00:59]} 39. a4 {[%clk 0:00:12]}  Kf6 {[%clk 0:00:59]} 40. b4 {[%clk 0:00:12]}  Rc3+ {[%clk 0:00:58]} 41. Ke2 {[%clk 0:00:12]}  e4 {[%clk 0:00:59]} 42. Rh1 {[%clk 0:00:12]}  Rc4 {[%clk 0:00:57]} 43. Rb1 {[%clk 0:00:10]}  Ke5 {[%clk 0:00:57]} 44. a5 {[%clk 0:00:10]}  f4 {[%clk 0:00:56]} 45. b5 {[%clk 0:00:10]}  Rc2+ {[%clk 0:00:56]} 46. Ke1 {[%clk 0:00:11]}  Ra2 {[%clk 0:00:55]} 47. a6 {[%clk 0:00:09]}  bxa6 {[%clk 0:00:54]} 48. bxa6 {[%clk 0:00:09]}  Rxa6 {[%clk 0:00:54]} 49. Rb5+ {[%clk 0:00:10]}  Kd4 {[%clk 0:00:53]} 50. Rb4+ {[%clk 0:00:10]}  Kd5 {[%clk 0:00:53]} 51. Rb5+ {[%clk 0:00:11]}  Kc4 {[%clk 0:00:53]} 52. Re5 {[%clk 0:00:11]}  Kd4 {[%clk 0:00:53]} 53. Rb5 {[%clk 0:00:11]}  Ra3 {[%clk 0:00:53]} 54. Rb1 {[%clk 0:00:11]}  f3 {[%clk 0:00:52]} 55. Kf1 {[%clk 0:00:11]}  Ke3 {[%clk 0:00:52]} 56. Re1+ {[%clk 0:00:08]}  Kf4 {[%clk 0:00:53]} 57. Rb1 {[%clk 0:00:07]}  e3 {[%clk 0:00:53]} 58. Ke1 {[%clk 0:00:08]}  Kg3 {[%clk 0:00:54]} 59. Kf1 {[%clk 0:00:07]}  Ra2 {[%clk 0:00:54]} 60. Ra1 {[%clk 0:00:06]}  Rxa1# {[%clk 0:00:53]} 0-1